bitfinex-derivatives/quotes_SOLF0:USTF0_20241206
["timestamp","ask_amount","ask_price","bid_price","bid_amount"]
[1733472796275,934.58905,239.24,239.14,1.2469]
[1733472796578,934.58905,239.24,239.15,8.86785062]
[1733472796768,934.58905,239.24,239.16,2.58238779]
[1733472797071,934.58905,239.24,239.15,6.28546283]
[1733472797268,934.58905,239.24,239.16,2.58112109]
[1733472797475,934.58905,239.24,239.15,6.28546283]
[1733472797773,934.58905,239.24,239.19,2.0887]
[1733472798471,934.58905,239.24,239.15,6.28546283]
[1733472799670,934.58905,239.24,239.19,2.0888]
[1733472799870,934.58905,239.24,239.15,6.28546283]
[1733472800071,934.58905,239.24,239.19,9.07178348]
[1733472800271,929.87309952,239.24,239.23,2.0884]
[1733472800571,919.63859952,239.24,239.23,2.0884]
[1733472800772,916.95269952,239.24,239.23,2.0884]
[1733472800979,916.95269952,239.24,239.23,8.85461042]
[1733472801277,916.95269952,239.24,239.23,4.66155766]
[1733472801480,916.95269952,239.24,239.23,2.0884]
[1733472801674,916.95269952,239.24,239.23,6.19820501]
[1733472802075,916.95269952,239.24,239.23,8.19820501]
[1733472804682,787.39731787,239.24,239.23,4.0884]
[1733472804878,787.39731787,239.24,239.23,6.65364453]
[1733472805179,787.39731787,239.24,239.23,10.87444365]
[1733472805583,787.39731787,239.24,239.23,10.87358807]
[1733472805980,787.39731787,239.24,239.23,14.97575065]
[1733472806679,782.68731787,239.24,239.23,10.75495153]
[1733472806879,657.30463281,239.24,239.23,10.75495153]
[1733472807277,657.30463281,239.24,239.23,14.94733057]
[1733472807479,649.10463281,239.24,239.23,19.82673501]
[1733472807683,643.08842213,239.24,239.23,19.82673501]
[1733472807879,643.08842213,239.24,239.23,24.05004178]
[1733472808081,385.51269624,239.24,239.23,19.82673501]
[1733472808280,345.65073155,239.24,239.23,19.87273093]
[1733472808487,308.89816555,239.24,239.23,19.87273093]
[1733472808779,296.01246555,239.24,239.23,19.76944884]
[1733472809080,160.81269245,239.24,239.23,15.62129034]
[1733472809386,141.63909245,239.24,239.23,18.75633319]
[1733472809683,87.90563639,239.24,239.23,18.75633319]
[1733472809873,87.90563639,239.24,239.23,23.01934706]
[1733472810276,79.74563638,239.24,239.23,13.16018348]
[1733472810584,1.2722,239.55,239.23,11.07178348]
[1733472810783,1.2722,239.55,239.46,9.07178348]
[1733472810979,1.2722,239.55,239.47,2.06]
[1733472811178,1.2722,239.55,239.47,6.23614144]
[1733472811385,1.2722,239.55,239.47,2.06]
[1733472812081,1.2722,239.55,239.47,6.32916487]
[1733472812379,1.2722,239.55,239.47,2.06]
[1733472812779,1.2722,239.55,239.47,6.20016311]
[1733472812980,1.2722,239.55,239.47,2.06]
[1733472813582,1.2722,239.55,239.47,6.15382267]
[1733472814780,1.2722,239.55,239.47,4.09382267]
[1733472815176,1.2722,239.55,239.44,2.06]
[1733472815679,1.2722,239.55,239.44,6.27305047]
[1733472816076,109.06924605,239.36,239.32,4.23392575]
[1733472816276,1e-08,239.36,239.35,9.07178348]
[1733472816480,1e-08,239.36,239.35,18.14356696]
[1733472817880,1e-08,239.36,239.35,20.20356696]
[1733472818083,1e-08,239.36,239.35,18.14356696]
[1733472818278,1e-08,239.36,239.35,11.13178348]
[1733472818782,1e-08,239.36,239.35,9.07178348]
[1733472818987,1e-08,239.36,239.35,11.13178348]
[1733472822489,1e-08,239.36,239.35,20.20356696]
[1733472822887,1e-08,239.36,239.35,20.97077803]
[1733472823996,1e-08,239.36,239.35,20.97071422]
[1733472825293,1e-08,239.36,239.35,20.97069655]
[1733472827386,1e-08,239.36,239.35,20.20356696]
[1733472827595,1e-08,239.36,239.35,20.97078498]
[1733472830894,1e-08,239.36,239.35,20.97071936]
[1733472831696,1e-08,239.36,239.35,21.7378266]
[1733472832493,1.3,239.62,239.35,21.7378266]
[1733472832699,1.3,239.62,239.49,9.07178348]
[1733472833001,1.3,239.62,239.5,2.06]
[1733472833299,1.3,239.62,239.5,6.30710093]
[1733472838207,1.3,239.62,239.5,4.24710093]
[1733472838402,1.3,239.62,239.49,2.02]
[1733472838604,1.3,239.62,239.46,9.07178348]
[1733472838904,1.3,239.62,239.47,2.02]
[1733472839405,9.07178348,239.61,239.46,13.17360604]
[1733472839611,2.02,239.6,239.47,2.02]
[1733472840007,2.02,239.6,239.46,4.10182256]
[1733472840312,2.02,239.6,239.45,2.02]
[1733472840611,2.02,239.6,239.49,9.07178348]
[1733472840810,2.02,239.6,239.5,2.02]
[1733472841000,1.3,239.62,239.5,2.02]
[1733472841406,1.3,239.62,239.52,9.07178348]
[1733472844210,1.3,239.62,239.5,2.02]
[1733472844211,1.3,239.62,239.55,9.07178348]
[1733472844408,1.3,239.62,239.56,2.02]
[1733472845112,1.3,239.62,239.58,9.07178348]
[1733472849813,1.3,239.62,239.58,2.02]
[1733472850512,1.3,239.62,239.57,2.02]
[1733472852706,1.3,239.62,239.56,2.02]
[1733472853211,1.3,239.62,239.55,13.27654664]
[1733472853411,1.3,239.62,239.53,2.02]
[1733472853915,1.3,239.62,239.41,3.13096147]
[1733472853916,9.07178348,239.58,239.41,3.13096147]
[1733472854116,2.02,239.57,239.43,9.07178348]
[1733472854620,2.02,239.57,239.46,9.07178348]
[1733472854826,2.02,239.57,239.46,13.31866239]
[1733472855015,2.02,239.57,239.49,9.07178348]
[1733472855210,2.02,239.6,239.49,9.07178348]
[1733472856321,2.02,239.6,239.49,13.15588276]
[1733472857918,1.345,239.59,239.49,13.15588276]
[1733472877642,1.3,239.62,239.49,13.15588276]
[1733472878041,7.08221886,239.62,239.52,5.78221886]
[1733472879345,5.78221886,239.6,239.52,5.78221886]
[1733472879745,5.78221886,239.58,239.51,4.15307239]
[1733472879947,5.78221886,239.56,239.51,4.15307239]
[1733472880548,5.78221886,239.54,239.51,4.15307239]
[1733472880745,5.78221886,239.54,239.45,7.88221886]
[1733472881547,5.78221886,239.5,239.41,12.09706559]
[1733472881745,5.78221886,239.5,239.41,7.88221886]
[1733472881939,2.6806,239.52,239.41,2.1]
[1733472882138,2.6806,239.52,239.37,13.18355728]
[1733472882342,2.6806,239.52,239.38,2.1]
[1733472882741,2.6806,239.52,239.37,13.18355728]
[1733472883043,2.6806,239.52,239.3,1.3206]
[1733472883044,9.04352859,239.49,239.3,1.3206]
[1733472883351,2.1,239.48,239.32,9.04352859]
[1733472883750,2.1,239.48,239.35,9.04352859]
[1733472883948,2.6806,239.52,239.38,9.04352859]
[1733472884148,2.1,239.51,239.38,9.04352859]
[1733472891246,2.1,239.51,239.41,9.04352859]
[1733472891447,2.1,239.51,239.41,11.14352859]
[1733472892050,2.1,239.51,239.41,15.2834022]
[1733472892945,2.6806,239.52,239.41,15.2834022]
[1733472893347,2.6806,239.52,239.41,2.1]
[1733472893646,9.04352859,239.5,239.37,2.1]
[1733472893853,2.1,239.49,239.37,2.1]
[1733472900058,9.04352859,239.47,239.35,4.15741544]
[1733472900263,9.04352859,239.47,239.35,4.113665]
[1733472900454,9.04352859,239.47,239.34,2.04]
[1733472901260,9.04352859,239.47,239.32,11.08352859]
[1733472901464,9.04352859,239.47,239.32,15.17798062]
[1733472901663,2.0865,239.45,239.32,15.17798062]
[1733472901856,2.04,239.44,239.31,2.04]
[1733472902162,1.3417,239.43,239.31,2.04]
[1733472902364,1.3417,239.43,239.31,4.09362881]
[1733472902561,3.4268,239.42,239.29,2.04]
[1733472903063,3.4268,239.42,239.3,4.07984133]
[1733472903360,9.04352859,239.41,239.29,2.04]
[1733472903862,2.087,239.39,239.29,2.04]
[1733472904072,5.79397263,239.36,239.29,2.04]
[1733472904259,7.83397263,239.38,239.29,7.83397263]
[1733472904560,7.83397263,239.38,239.29,12.02870964]
[1733472904760,7.83397263,239.38,239.29,2.04]
[1733472907064,5.79397263,239.36,239.29,2.04]
[1733472907255,2.04,239.38,239.25,130.20804263]
[1733472907256,5.79397263,239.34,239.25,130.20804263]
[1733472908663,2.0872,239.37,239.25,130.20804263]
[1733472908860,5.79397263,239.35,239.27,5.79397263]
[1733472913169,2.0875,239.34,239.25,124.41407]
[1733472913469,7.83397263,239.33,239.25,124.41407]
[1733472914464,5.79397263,239.31,239.25,124.41407]
[1733472914865,7.88167263,239.31,239.25,124.41407]
[1733472915268,1.2766,239.32,239.26,5.79397263]
[1733472915466,2.04,239.33,239.28,5.79397263]
[1733472917862,1.2465,239.34,239.28,5.79397263]
[1733472919469,1.2465,239.34,239.26,5.79397263]
[1733472919868,7.04047263,239.34,239.26,5.79397263]
[1733472922381,2.087,239.4,239.3,5.79397263]
[1733472922671,12.51,239.57,239.3,5.79397263]
[1733472922672,5.79397263,239.45,239.36,5.79397263]
[1733472922872,2.5864,239.46,239.4,5.79397263]
[1733472923078,2.04,239.52,239.42,5.79397263]
[1733472923376,2.04,239.52,239.44,5.79397263]
[1733472923879,5.79397263,239.51,239.44,5.79397263]
[1733472924270,2.04,239.52,239.44,5.79397263]
[1733472924581,7.83397263,239.52,239.44,5.79397263]
[1733472924778,7.83397263,239.52,239.42,9.88103912]
[1733472924983,7.83397263,239.52,239.42,5.79397263]
[1733472926089,2.04,239.53,239.41,2.04]
[1733472926278,2.04,239.54,239.41,6.18680056]
[1733472926480,2.04,239.54,239.41,2.04]
[1733472927075,2.04,239.54,239.41,6.22230041]
[1733472927278,2.04,239.54,239.41,2.04]
[1733472927787,2.04,239.54,239.41,6.14845785]
[1733472928086,11.06092443,239.55,239.41,6.14845785]
[1733472928682,9.04092443,239.58,239.43,9.04092443]
[1733472928887,2.02,239.57,239.43,9.04092443]
[1733472929382,3.8541,239.59,239.46,9.04092443]
[1733472929383,2.5864,239.59,239.46,9.04092443]
[1733472929685,2.5864,239.59,239.47,2.02]
[1733472930185,2.5864,239.59,239.49,9.04092443]
[1733472930379,2.5864,239.59,239.49,13.19447969]
[1733472930782,2.02,239.62,239.49,13.19447969]
[1733472931181,9.04092443,239.67,239.49,13.19447969]
[1733472931182,2.5181,239.69,239.52,9.04092443]
[1733472931379,2.02,239.68,239.53,2.02]
[1733472931786,2.02,239.68,239.53,3.3048]
[1733472931984,9.04092443,239.67,239.53,3.3048]
[1733472932185,9.04092443,239.64,239.52,2.02]
[1733472932381,2.0851,239.62,239.52,2.02]
[1733472932890,9.04092443,239.61,239.5,2.02]
[1733472933286,1.2551,239.6,239.5,2.02]
[1733472933486,9.04092443,239.58,239.42,1.2848]
[1733472933684,9.04092443,239.55,239.43,2.02]
[1733472934191,5.4746,239.57,239.43,2.02]
[1733472934590,3.3891,239.57,239.43,2.02]
[1733472935789,2.0855,239.56,239.43,2.02]
[1733472937385,4.1055,239.56,239.43,2.02]
[1733472938183,2.0858,239.53,239.41,4.10845785]
[1733472938386,9.04092443,239.55,239.38,9.04092443]
[1733472938687,9.04092443,239.55,239.41,2.02]
[1733472939086,2.02,239.56,239.41,11.06092443]
[1733472939487,4.1055,239.56,239.41,11.06092443]
[1733472941488,9.04092443,239.54,239.41,2.02]
[1733472941685,9.04092443,239.51,239.38,6.12727942]
[1733472941885,3.3253,239.5,239.38,6.12727942]
[1733472942489,3.3253,239.5,239.38,2.02]
[1733472942684,3.3253,239.5,239.38,6.22742162]
[1733472942889,3.3253,239.5,239.38,2.02]
[1733472943295,3.3253,239.5,239.38,11.06092443]
[1733472943592,2.02,239.52,239.41,9.04092443]
[1733472943991,3.3618,239.56,239.41,9.04092443]
[1733472944296,5.4474,239.56,239.41,9.04092443]
[1733472944894,3.3618,239.56,239.41,9.04092443]
[1733472945495,5.4473,239.56,239.41,9.04092443]
[1733472946695,3.3618,239.56,239.41,9.04092443]
[1733472948495,4.1676,239.77,239.48,9.04092443]
[1733472948692,5.0307,239.67,239.54,9.04092443]
[1733472948892,5.0307,239.67,239.55,2.02]
[1733472949096,5.0307,239.67,239.55,6.18691687]
[1733472949294,5.0307,239.67,239.55,4.16691687]
[1733472949496,5.0307,239.67,239.55,2.02]
[1733472949693,5.0307,239.67,239.54,9.04092443]
[1733472949992,14.07162443,239.67,239.54,4.15480617]
[1733472950192,14.07162443,239.67,239.51,11.06092443]
[1733472950393,1.3082,239.73,239.57,9.04092443]
[1733472950593,1.3082,239.73,239.6,9.04092443]
[1733472950796,3.3282,239.73,239.61,2.02]
[1733472951191,2.02,239.73,239.61,2.02]
[1733472952489,2.02,239.73,239.62,2.02]
[1733472953106,2.02,239.73,239.6,9.04092443]
[1733472953398,2.02,239.73,239.61,2.02]
[1733472960901,2.02,239.73,239.63,9.04092443]
[1733472961197,2.02,239.73,239.63,13.12734701]
[1733472961705,5.0307,239.75,239.63,13.12734701]
[1733472962296,2.06,239.76,239.63,13.12734701]
[1733472962503,31.9617338,239.78,239.63,13.12734701]
[1733472962703,31.9617338,239.78,239.64,2.06]
[1733472963206,31.9617338,239.78,239.66,9.04092443]
[1733472963800,31.9617338,239.78,239.67,1.04303422]
[1733472964195,9.04092443,239.82,239.68,1.04303422]
[1733472964501,9.04092443,239.82,239.63,4.08642258]
[1733472964502,9.04092443,239.82,239.69,12.14395865]
[1733472964703,9.04092443,239.82,239.7,1.04303422]
[1733472964900,9.04092443,239.82,239.71,1.04303422]
[1733472965099,2.06,239.83,239.72,5.2452967]
[1733472965305,2.06,239.83,239.73,1.04303422]
[1733472965598,9.04092443,239.9,239.74,3.10303422]
[1733472965799,11.10092443,239.9,239.75,10.08395865]
[1733472965998,2.06,239.9,239.76,1.04303422]
[1733472966200,2.06,239.94,239.78,9.04092443]
[1733472966400,2.06,239.95,239.79,2.06]
[1733472966611,16.47992443,239.96,239.81,9.04092443]
[1733472966807,18.53992443,239.96,239.81,9.04092443]
[1733472967706,2.0822,239.95,239.78,13.17811962]
[1733472967902,9.04092443,239.93,239.79,1.04284524]
[1733472968103,9.04092443,239.87,239.75,2.06]
[1733472968299,9.04092443,239.87,239.76,1.04286581]
[1733472968506,2.06,239.88,239.78,9.04092443]
[1733472968710,2.06,239.92,239.79,1.04286581]
[1733472968908,2.06,239.92,239.8,3.10286581]
[1733472969204,2.06,239.92,239.81,1.04286581]
[1733472969409,2.06,239.92,239.8,2.06]
[1733472969709,2.06,239.92,239.81,1.0428306]
[1733472969909,2.06,239.92,239.81,9.04092443]
[1733472970099,7.439,239.96,239.84,9.04092443]
[1733472970304,7.439,239.96,239.85,3.10260017]
[1733472970505,7.439,239.96,239.86,1.04260017]
[1733472970703,7.439,239.96,239.85,6.20238377]
[1733472970704,4.9149,239.96,239.85,2.06]
[1733472970910,9.04092443,240.02,239.87,9.04092443]
[1733472971103,9.04092443,240.02,239.88,1.0424055]
[1733472971309,9.04092443,240.02,239.89,1.0424055]
[1733472971510,9.04092443,240.02,239.9,3.1024055]
[1733472971809,9.04092443,240.02,239.91,1.0424055]
[1733472972006,9.04092443,240.02,239.92,1.0424055]
[1733472972213,9.04092443,240.02,239.93,1.0424055]
[1733472972406,2.0817,240.01,239.94,1.0424055]
[1733472972613,9.04092443,239.99,239.88,2.06]
[1733472972910,2.0822,239.95,239.89,1.0421418]
[1733472973109,9.04092443,239.93,239.81,2.06]
[1733472973311,9.04092443,239.93,239.82,1.04234596]
[1733472973507,9.04092443,239.93,239.83,1.04234596]
[1733472973811,9.04092443,239.93,239.84,1.04234596]
[1733472974012,9.04092443,239.93,239.85,1.04234596]
[1733472974210,9.04092443,239.93,239.86,1.04234596]
[1733472974515,9.04092443,239.93,239.81,4.08350571]
[1733472974704,9.04092443,239.93,239.76,9.04092443]
[1733472974705,11.12322443,239.93,239.82,1.04241601]
[1733472974905,9.04092443,239.93,239.81,4.18730246]
[1733472975105,9.04092443,239.93,239.79,2.06]
[1733472975617,9.04092443,239.93,239.76,9.04092443]
[1733472975618,9.04092443,239.93,239.8,2.06]
[1733472975913,9.04092443,239.93,239.8,6.17351923]
[1733472976113,9.04092443,239.93,239.8,2.06]
[1733472976511,7.1743,239.94,239.8,2.06]
[1733472976708,7.1743,239.94,239.8,6.26700429]
[1733472976912,7.1743,239.94,239.8,2.06]
[1733472977416,7.1743,239.94,239.8,6.32203596]
[1733472977617,7.1743,239.94,239.8,2.06]
[1733472978114,7.1743,239.94,239.8,6.12775749]
[1733472980314,9.2565,239.94,239.8,6.12775749]
[1733472980716,7.1743,239.94,239.8,6.12775749]
[1733472981516,2.3314,239.98,239.85,9.04092443]
[1733472981726,2.3314,239.98,239.86,2.06]
[1733472981924,2.3314,239.98,239.86,6.27159481]
[1733472982128,7.1942,239.98,239.86,2.06]
[1733472982725,7.1942,239.98,239.86,6.2144729]
[1733472983924,115.0,240.39,239.97,9.04092443]
[1733472984130,9.04092443,240.25,240.08,9.04092443]
[1733472984321,2.08,240.2,240.04,9.04092443]
[1733472984528,9.04092443,240.16,240.04,4.15909543]
[1733472984728,4.8341,240.15,240.0,9.04092443]
[1733472985023,9.04092443,240.09,239.97,4.18702281]
[1733472985228,9.04092443,240.12,239.96,9.04092443]
[1733472985426,2.06,240.11,239.96,4.26121794]
[1733472985628,9.04092443,240.08,239.91,9.04092443]
[1733472985823,2.06,240.07,239.91,13.25670827]
[1733472986019,2.06,240.07,240.02,0.08726511]
[1733472986224,2.06,240.07,240.03,4.79242899]
[1733472986432,2.06,240.07,240.04,4.79242899]
[1733472986725,2.06,240.06,240.02,0.08726511]
[1733472986925,2.06,240.06,240.0,0.08726511]
[1733472987231,2.12,240.05,240.02,0.08726511]
[1733472988029,9.04092443,240.08,239.91,13.25670827]
[1733472988221,9.04092443,240.11,239.94,9.04092443]
[1733472988427,2.12,240.1,239.94,9.04092443]
[1733472988935,9.04092443,240.11,239.94,9.04092443]
[1733472989231,2.12,240.09,239.94,9.04092443]
[1733472992236,9.04092443,240.08,239.94,9.04092443]
[1733472992730,2.12,240.09,239.91,4.21578384]
[1733472992731,9.04092443,240.01,239.91,4.21578384]
[1733472992935,9.04092443,240.12,239.77,3.12536291]
[1733472992936,9.04092443,239.98,239.77,3.12536291]
[1733472993131,9.04092443,239.98,239.76,739.51179]
[1733472993132,2.12,239.97,239.81,9.04092443]
[1733472993432,2.12,239.96,239.84,9.04092443]
[1733472993635,2.4085,239.99,239.87,9.04092443]
[1733472993933,2.12,239.98,239.84,9.04092443]
[1733472994727,2.12,239.98,239.84,13.19345905]
[1733472994931,11.16092443,239.98,239.84,4.15253462]
[1733472995134,11.16092443,239.98,239.81,9.04092443]
[1733472995735,9.04092443,239.98,239.81,9.04092443]
[1733472995931,2.12,239.97,239.81,9.04092443]
[1733472996134,9.04092443,239.98,239.81,9.04092443]
[1733472996339,2.12,239.97,239.81,9.04092443]
[1733472996631,4.202,239.97,239.81,9.04092443]
[1733472996831,9.04092443,239.98,239.81,9.04092443]
[1733472997032,2.12,239.97,239.84,9.04092443]
[1733472997238,9.04092443,239.98,239.84,13.1929661]
[1733472997433,2.12,239.97,239.84,13.1929661]
[1733472998238,4.7695,239.99,239.84,13.1929661]
[1733472998239,4.7695,239.99,239.87,9.04092443]
[1733472998541,2.12,239.98,239.87,9.04092443]
[1733472998930,2.12,239.98,239.87,13.17337117]
[1733472999737,2.12,239.97,239.87,13.17337117]
[1733473001136,4.7695,239.99,239.87,13.17337117]
[1733473001336,2.12,239.98,239.87,4.13244674]
[1733473001537,2.12,239.98,239.86,9.04092443]
[1733473001745,2.12,239.98,239.86,13.22009572]
[1733473002836,4.7695,239.99,239.86,13.22009572]
[1733473003038,2.12,239.97,239.86,13.22009572]
[1733473003643,4.7695,239.99,239.86,13.22009572]
[1733473003937,2.12,239.98,239.86,13.22009572]
[1733473004538,2.12,239.98,239.89,9.04092443]
[1733473005641,2.12,239.98,239.86,13.22009572]
[1733473005839,2.12,239.98,239.86,9.04092443]
[1733473006241,4.7695,239.99,239.86,9.04092443]
[1733473006242,2.12,239.97,239.86,9.04092443]
[1733473006440,2.12,239.97,239.86,13.27636261]
[1733473006640,2.12,239.96,239.86,13.27636261]
[1733473009144,4.7695,239.99,239.86,4.23543818]
[1733473009438,4.7695,239.99,239.83,11.16092443]
[1733473009439,2.12,239.98,239.83,11.16092443]
[1733473009846,2.12,239.98,239.83,15.34318595]
[1733473010044,2.12,239.98,239.86,9.04092443]
[1733473010545,2.12,239.97,239.86,9.04092443]
[1733473014139,2.12,239.97,239.83,15.34318595]
[1733473014445,2.12,239.97,239.86,9.04092443]
[1733473014950,4.7695,239.99,239.86,9.04092443]
[1733473015141,4.7695,239.99,239.89,9.04092443]
[1733473015142,2.12,239.98,239.89,9.04092443]
[1733473015841,2.12,239.97,239.9,4.14825794]
[1733473016849,2.14,239.96,239.9,4.14825794]
[1733473017142,2.4085,239.99,239.89,9.04092443]
[1733473017344,2.14,239.98,239.89,9.04092443]
[1733473017551,2.14,239.98,239.89,13.12665839]
[1733473020451,2.4085,239.99,239.89,13.12665839]
[1733473020651,2.14,239.97,239.89,13.12665839]
[1733473022151,55.86,240.11,239.89,13.12665839]
[1733473022152,12.5,240.18,239.95,9.04092443]
[1733473022357,9.04092443,240.13,239.95,9.04092443]
[1733473022957,9.04092443,240.13,239.95,13.19342105]
[1733473023255,9.04092443,240.13,239.93,2.14]
[1733473023256,9.04092443,240.07,239.93,2.14]
[1733473023555,2.14,240.06,239.93,4.10873348]
[1733473023751,2.14,240.06,239.92,9.04092443]
[1733473024658,2.14,240.06,239.92,13.2567734]
[1733473026049,9.04092443,240.04,239.9,7.3149]
[1733473026457,7.4135,240.05,239.9,7.3149]
[1733473026757,7.4135,240.05,239.9,11.52480391]
[1733473027557,7.4135,240.05,239.92,9.04092443]
[1733473028652,2.14,240.04,239.92,9.04092443]
[1733473031758,2.14,240.03,239.92,9.04092443]
[1733473035255,34.50199881,240.22,240.0,9.04092443]
[1733473035556,9.04092443,240.2,240.01,2.14]
[1733473035852,9.04092443,240.16,240.01,11.29364841]
[1733473036060,2.14,240.15,240.01,4.9185]
[1733473036455,2.14,240.15,240.01,9.03196551]
[1733473036852,9.04092443,240.12,240.01,2.5043]
[1733473037055,9.04092443,240.12,239.96,9.04092443]
[1733473037255,9.04092443,240.12,239.96,13.12980332]
[1733473037456,11.12162443,240.12,239.96,13.12980332]
[1733473038857,9.04092443,240.12,239.96,13.12980332]
[1733473040954,9.04092443,240.12,239.95,2.14]
[1733473040955,9.04092443,240.09,239.95,2.14]
[1733473041160,2.14,240.08,239.93,9.04092443]
[1733473046073,5.76114143,240.05,239.97,5.76114143]
[1733473047763,2.14,240.08,239.97,5.76114143]
[1733473047962,5.76114143,240.06,239.97,5.76114143]
[1733473048770,5.76114143,240.04,239.97,5.76114143]
[1733473048963,5.76114143,240.02,239.91,4.8987]
[1733473049164,5.76114143,240.0,239.91,4.8987]
[1733473049362,7.86114143,240.0,239.91,10.65984143]
[1733473050366,5.76114143,239.98,239.91,10.65984143]
[1733473051064,7.86114143,240.0,239.91,10.65984143]
[1733473053570,2.1,240.0,239.91,10.65984143]
[1733473053769,7.86114143,240.0,239.91,10.65984143]
[1733473054264,7.86114143,240.0,239.91,4.8987]
[1733473054463,5.76114143,239.97,239.86,2.1]
[1733473054667,5.76114143,239.97,239.89,5.76114143]
[1733473056368,5.76114143,239.9,239.76,737.39179]
[1733473056569,5.76114143,239.85,239.77,8.25234143]
[1733473056775,7.86114143,239.85,239.77,8.25234143]
[1733473056976,5.76114143,239.83,239.77,2.4912]
[1733473057367,5.76114143,239.83,239.76,737.39179]
[1733473057571,5.76114143,239.81,239.76,737.39179]
[1733473057873,2.1,239.8,239.76,737.39179]
[1733473060674,11.1207786,239.8,239.76,730.98979001]
[1733473061376,9.0207786,239.77,239.76,727.14329001]
[1733473061577,9.0207786,239.77,239.76,705.82039001]
[1733473061781,9.0207786,239.77,239.76,702.39919001]
[1733473061979,9.0207786,239.77,239.76,577.25933863]
[1733473064480,11.1207786,239.77,239.76,577.25933863]
[1733473066581,11.1207786,239.77,239.76,452.07245202]
[1733473066582,20.1415572,239.77,239.76,452.07245202]
[1733473067385,11.1207786,239.77,239.76,452.07245202]
[1733473067582,9.0207786,239.77,239.76,452.07245202]
[1733473067787,11.1207786,239.77,239.76,452.07245202]
[1733473068384,2.0829,239.87,239.76,452.07245202]
[1733473068687,9.0207786,239.85,239.76,452.07245202]
[1733473069488,2.1,239.86,239.76,452.07245202]
[1733473069683,2.1,239.85,239.76,452.07245202]
[1733473070285,2.1,239.88,239.76,461.09323062]
[1733473070482,2.1,239.89,239.76,461.09323062]
[1733473070685,2.1,239.91,239.79,9.0207786]
[1733473070885,2.1,239.91,239.76,452.07245202]
[1733473070886,2.1,239.9,239.8,4.7363]
[1733473073092,4.1826,239.9,239.8,4.7363]
[1733473079897,2.1,239.9,239.8,4.7363]
[1733473080093,2.16,239.89,239.8,4.7363]
[1733473080489,2.0828,239.88,239.8,4.7363]
[1733473080695,2.16,239.89,239.8,4.7363]
[1733473081395,2.0828,239.88,239.8,4.7363]
[1733473081597,2.16,239.89,239.8,4.7363]
[1733473082791,9.0207786,239.88,239.8,4.7363]
[1733473083588,9.0207786,239.88,239.8,2.3516]
[1733473083589,2.083,239.85,239.8,2.3516]
[1733473083791,2.083,239.85,239.76,452.07245202]
[1733473083792,2.16,239.84,239.76,452.07245202]
[1733473083997,9.0207786,239.82,239.76,452.07245202]
[1733473084191,2.0835,239.8,239.76,452.07245202]
[1733473084499,2.16,239.79,239.76,452.07245202]
[1733473084997,2.16,239.87,239.76,452.07245202]
[1733473085497,2.16,239.87,239.77,2.3294]
[1733473086099,4.2429,239.87,239.77,2.3294]
[1733473087503,2.16,239.89,239.77,4.4894]
[1733473087801,2.16,239.88,239.77,4.4894]
[1733473088099,4.2428,239.88,239.77,4.4894]
[1733473089799,2.16,239.88,239.77,4.4894]
[1733473090104,2.0829,239.87,239.77,2.3294]
[1733473090305,2.16,239.88,239.77,2.3294]
[1733473090507,4.2428,239.88,239.77,2.3294]
[1733473091203,2.16,239.88,239.77,2.3294]
[1733473091397,9.0207786,239.85,239.77,2.3294]
[1733473091799,2.0831,239.84,239.77,2.3294]
[1733473092004,9.0207786,239.88,239.77,2.3294]
[1733473092306,2.16,239.87,239.77,2.3294]
[1733473092904,2.0831,239.84,239.77,2.3294]
[1733473093204,2.16,239.87,239.77,2.3294]
[1733473093605,2.083,239.86,239.77,2.3294]
[1733473094807,2.0831,239.85,239.77,2.3294]
[1733473096101,2.0829,239.86,239.77,2.3294]
[1733473096410,9.0207786,239.85,239.77,2.3294]
[1733473096611,2.0833,239.82,239.77,2.3294]
[1733473096810,2.16,239.81,239.77,2.3294]
[1733473097013,2.16,239.81,239.76,452.07245202]
[1733473098207,9.0207786,239.85,239.76,452.07245202]